[Event "FIDE World Cadets GU12 2022"]
[Site "Batumi"]
[Date "2022.09.18"]
[Round "3.14"]
[White "Kush, Agniya"]
[Black "Goriachkina, Oksana"]
[Result "0-1"]
[ECO "D20"]
[WhiteElo "1131"]
[BlackElo "1748"]
[Annotator "NA COMBH"]
[PlyCount "62"]
[EventDate "2022.09.16"]
[EventType "swiss"]
[EventCountry "GEO"]
[SourceTitle "playchess.com"]
[Source "ChessBase"]
[SourceQuality "1"]
[TimeControl "5400+30"]

1. d4 d5 2. c4 dxc4 3. e4 Nf6 4. e5 Nd5 5. Bxc4 Nb6 6. Bd3 Nc6 7. Ne2 Bg4 8. f3 Bh5 9. Nbc3 e6 10. Be4 Qd7 11. O-O Rb8 12. Be3 Bg6 13. a3 Ne7 14. Rc1 c6 15. Qc2 Ned5 16. Bf2 Be7 17. b4 Bg5 18. Rcd1 Nc4 19. Nxd5 cxd5 20. Bxg6 hxg6 21. f4 Be7 22. Qb3 O-O 23. Rd3 Rfc8 24. Rfd1 a5 25. Nc3 axb4 26. axb4 Ra8 27. Be1 Ra3 28. Qb1 Rca8 29. Qc2 Bxb4 30. Nxd5 Qxd5 31. Bxb4 Ra2 0-1

[Event "FIDE World Cadets GU12 2022"]
[Site "Batumi"]
[Date "2022.09.18"]
[Round "3.15"]
[White "Ismayilova, Khanim"]
[Black "Silva, Juliana Figueira The"]
[Result "1-0"]
[ECO "A24"]
[WhiteElo "1901"]
[BlackElo "1328"]
[Annotator "TA"]
[PlyCount "85"]
[EventDate "2022.09.16"]
[EventType "swiss"]
[EventCountry "GEO"]
[SourceTitle "playchess.com"]
[Source "ChessBase"]
[SourceQuality "1"]
[TimeControl "5400+30"]

{[%evp 14,84,54,28,43,60,77,85,75,71,61,27,65,72,60,48,72,33,42,42,49,37,48,60,66,12,14,9,27,12,15,0,27,35,31,36,65,80,98,112,109,109,97,128,96,75,238,239,491,479,451,471,1010,977,958,955,921,940,1004,959,1926,1957,1698,1683,29995,29996,29996,29997,29997,29998,29998,29999,29999]} 1. c4 Nf6 2. Nc3 g6 3. e4 d6 4. g3 Bg7 5. Bg2 O-O 6. Nge2 e5 7. O-O Nbd7 8. d3 Ne8 {A24: English Opening vs King's Indian: Lines without ...Nc6.} 9. Be3 f5 10. exf5 gxf5 {[#] White is better.} 11. Qd2 $146 ({Predecessor:} 11. f4 Ndf6 12. h3 c6 13. a4 Nh5 14. Kh2 Nef6 15. b4 e4 16. Rc1 d5 17. cxd5 cxd5 {0-1 (41) Barche,U-Gula,J (1586) Solingen 2014}) 11... c6 12. Bh6 Qf6 13. Bxg7 Qxg7 14. d4 Nb6 15. c5 exd4 16. Nxd4 dxc5 17. Nde2 Nc7 18. Nf4 Ne6 19. Nxe6 (19. Nce2 $14) 19... Bxe6 $11 20. Qd6 {[%csl LRc5,LRe6]} Bf7 21. Qxc5 Nc4 22. Rad1 {Rd7 is the strong threat.} Nxb2 (22... b6 $5 {[%cal Rb6c5]} 23. Qxc6 Nxb2 $11) 23. Rd7 Nc4 24. Ne2 {[%cal Bc3e2,Be2f4,Bf4h5,Bh5f6][%mdl 1056] White has compensation.} (24. Qxf5 Qxc3 25. Rxb7 Nd6 26. Qg5+ Qg7 27. Qxg7+ Kxg7 $17) 24... Rfe8 25. Nf4 Re5 26. Qb4 {White is much more active.} Rb5 {[%emt 1:18:30]} 27. Qe7 {[%emt 1:21:00][%cal Of4h5] aiming for Nh5!} Re8 {[%emt 0:00:30]} 28. Qh4 {[%emt 0:00:30]} Qg4 {[%emt 0:03:30] [#] Against Nh5. Strongly threatening ...Qxh4.} 29. Qf6 {[%emt 0:07:32]} (29. Qh6 Ne5 30. Rc7 Qg7 31. Qxg7+ Kxg7 $11) 29... Qg7 {[%emt 0:00:30] This move loses the game for Black.} (29... Ne5 $16 30. Re7 (30. Rc7 Qg7 $16) 30... Rxe7 31. Qxe7 Ng6 32. Qd8+ Nf8) 30. Nh5 $1 $40 {[%emt 0:00:48][%csl Gh5][%cal Rf6g7][%mdl 128] White has strong attack. Really sharp!} Qf8 {[%emt 0:02:30] [#]} (30... Qg6) 31. Qg5+ $1 {[%emt 0:01:29]} ({Inferior is} 31. Nf4 Ne5 32. Rc7 Bg6 33. Qxf8+ Kxf8 $17) 31... Kh8 {[%emt 0:00:30][%cal Of5f4]} 32. Nf6 {[%emt 0:01:11]} ({Don't do} 32. Qf6+ Kg8 $18) 32... Rc8 {[%emt 0:06:09] [#]} (32... Ne5 $142) 33. Qh5 $3 {[%emt 0:00:46][%csl Gf6][%cal Rh5h7][%mdl 512]} Kg7 {[%emt 0:02:25]} 34. Nxh7 {[%emt 0:04:33]} Qe8 {[%emt 0:02:31]} 35. Rfd1 {[%emt 0:01:39][%cal Bf1d1,Bd1d6,Bd6d4,Bd4f4][%mdl 32] Intending Ng5 and mate.} Ne5 {[%emt 0:01:35] [#]} 36. Nf6 $1 {[%emt 0:03:03][%mdl 512]} Kxf6 {[%emt 0:04:11]} (36... Qe6 37. Qg5+) 37. Qh6+ {[%emt 0:01:06]} Ng6 {[%emt 0:01:03]} 38. R1d6+ {[%emt 0:00:30]} Be6 {[%emt 0:00:30]} 39. Qg7+ {[%emt 0:00:30] White mates.} Kg5 {[%emt 0:00:30]} 40. h4+ {[%emt 0:00:36]} Kg4 {[%emt 0:03:11]} 41. Rd4+ {[%emt 0:00:17]} f4 {[%emt 0:00:27]} 42. Rxf4+ {[%emt 0:00:05]} Kh5 {[%emt 0:00:00]} 43. Qh7# {[%emt 0:00:30] Weighted Error Value: White=0.07 (flawless) /Black=0.43} 1-0

[Event "FIDE World Cadets GU12 2022"]
[Site "Batumi"]
[Date "2022.09.18"]
[Round "3.16"]
[White "Aravindakshan, Sahana"]
[Black "Sordia, Marta"]
[Result "1-0"]
[ECO "D26"]
[WhiteElo "1776"]
[BlackElo "1363"]
[Annotator "NA COMBH"]
[PlyCount "60"]
[EventDate "2022.09.16"]
[EventType "swiss"]
[EventCountry "GEO"]
[SourceTitle "playchess.com"]
[Source "ChessBase"]
[SourceQuality "1"]
[TimeControl "5400+30"]

1. d4 d5 2. c4 dxc4 3. e3 Nf6 4. Bxc4 e6 5. Nf3 Be7 6. O-O O-O 7. Nc3 Nbd7 8. Re1 c5 9. Qc2 cxd4 10. exd4 Nb6 11. Bd3 Nbd5 12. Nxd5 Qxd5 13. Bf4 Bd7 14. Be5 Rac8 15. Qd2 Bb5 16. Bc2 h6 17. Bf4 Bd6 18. Be5 Bxe5 19. Rxe5 Qd7 20. Re3 Rfd8 21. Rd1 Nd5 22. Ra3 Qc7 23. Rc1 Qf4 24. Qe1 {[%emt 1:27:38]} Nb4 {[%emt 1:12:30]} 25. Rc3 {[%emt 0:00:30]} Nxa2 {[%emt 0:00:30]} 26. Rxc8 {[%emt 0:00:30]} Rxc8 {[%emt 0:00:30]} 27. Bh7+ {[%emt 0:00:30]} Kxh7 {[%emt 0:00:30]} 28. Rxc8 {[%emt 0:00:00]} Bc6 {[%emt 0:01:30]} 29. Ne5 {[%emt 0:03:58]} Qxd4 {[%emt 0:07:30]} 30. Nxf7 {[%emt 0:02:09]} Qe4 1-0

[Event "FIDE World Cadets GU12 2022"]
[Site "Batumi"]
[Date "2022.09.18"]
[Round "3.17"]
[White "Garcia Rodriguez, Laia"]
[Black "Danielyan, Lilia"]
[Result "1-0"]
[ECO "B26"]
[WhiteElo "1742"]
[BlackElo "1299"]
[Annotator "NA COMBH"]
[PlyCount "81"]
[EventDate "2022.09.16"]
[EventType "swiss"]
[EventCountry "GEO"]
[SourceTitle "playchess.com"]
[Source "ChessBase"]
[SourceQuality "1"]
[TimeControl "5400+30"]

1. e4 c5 2. Nc3 Nc6 3. g3 d6 4. Bg2 g6 5. d3 Bg7 6. Be3 a6 7. a4 Rb8 8. Qd2 Nd4 9. Nge2 Bh3 10. Bxd4 cxd4 11. Bxh3 dxc3 12. Nxc3 Qb6 13. Rb1 e6 14. O-O Ne7 15. Nd1 Nc6 16. Ne3 Nd4 17. Bg2 Rc8 18. Nc4 Qd8 19. Rbe1 O-O 20. c3 Nc6 21. f4 d5 22. exd5 exd5 23. Ne5 Nxe5 24. fxe5 d4 25. c4 Qd7 26. a5 Rfe8 27. Bd5 Rxe5 28. Rxe5 Bxe5 29. Rxf7 Qxd5 30. cxd5 Kxf7 31. Qh6 Bg7 32. Qf4+ Bf6 33. Qd6 Rc1+ 34. Kg2 Rc2+ 35. Kh3 h5 36. Qe6+ Kg7 37. g4 hxg4+ 38. Kxg4 Rg2+ 39. Kf3 Rxh2 40. d6 Rh3+ 41. Qxh3 1-0

[Event "FIDE World Cadets GU12 2022"]
[Site "Batumi"]
[Date "2022.09.18"]
[Round "3.19"]
[White "Alfano, Emilie"]
[Black "Kong, Emma Zihan"]
[Result "1-0"]
[ECO "B51"]
[WhiteElo "1712"]
[BlackElo "1270"]
[Annotator "NA COMBH"]
[PlyCount "91"]
[EventDate "2022.09.16"]
[EventType "swiss"]
[EventCountry "GEO"]
[SourceTitle "playchess.com"]
[Source "ChessBase"]
[SourceQuality "1"]
[TimeControl "5400+30"]

1. e4 c5 2. Nf3 d6 3. Bb5+ Nd7 4. Ba4 e5 5. O-O Ngf6 6. Re1 Be7 7. c3 a6 8. d4 b5 9. Bc2 O-O 10. Nbd2 Bb7 11. Nf1 Qc7 12. Ng3 Rfe8 13. Nf5 cxd4 14. cxd4 Rac8 15. Re2 exd4 16. N3xd4 Bf8 17. f3 d5 18. exd5 Rxe2 19. Qxe2 g6 20. Nh6+ Bxh6 21. Bxh6 Qc5 22. Qd2 Bxd5 23. Kh1 Bb7 24. Bb3 Qh5 25. Re1 Qc5 26. Qe3 Bd5 27. Qd2 Bxb3 28. Nxb3 Qc2 29. Rc1 Qxc1+ 30. Nxc1 Re8 31. Kg1 Re6 32. Kf2 Kh8 33. Nd3 Rd6 34. Qc3 Re6 35. Nf4 Re5 36. Qc8+ Re8 37. Qxa6 b4 38. g4 Ng8 39. Bg5 f6 40. Qd6 fxg5 41. Qxd7 Nf6 42. Qf7 gxf4 43. Qxf6+ Kg8 44. Qxf4 Rc8 45. Qe4 Kf7 46. Qb7+ 1-0

[Event "FIDE World Cadets GU12 2022"]
[Site "Batumi"]
[Date "2022.09.18"]
[Round "3.20"]
[White "Tynyshtyk, Diana"]
[Black "Haasova, Timea"]
[Result "1/2-1/2"]
[ECO "C04"]
[WhiteElo "1373"]
[BlackElo "1707"]
[Annotator "NA COMBH"]
[PlyCount "119"]
[EventDate "2022.09.16"]
[EventType "swiss"]
[EventCountry "GEO"]
[SourceTitle "playchess.com"]
[Source "ChessBase"]
[SourceQuality "1"]
[TimeControl "5400+30"]

1. e4 e6 2. d4 d5 3. Nd2 Nc6 4. Ngf3 Nf6 5. e5 Nd7 6. Bb5 f6 7. exf6 Qxf6 8. Nf1 h6 9. Ng3 Bd6 10. O-O O-O 11. c3 a6 12. Ba4 Nb6 13. Bc2 Ne7 14. Nh5 Qf7 15. Ne5 Bxe5 16. dxe5 Bd7 17. Be3 Bb5 18. Re1 Nc4 19. Bc5 Nxb2 20. Qg4 Nd3 21. Bxe7 Qxf2+ {[%emt 1:16:00]} 22. Kh1 {[%emt 1:22:11]} Qxe1+ {[%emt 0:00:30]} 23. Rxe1 {[%emt 0:00:30]} Nf2+ {[%emt 0:00:30]} 24. Kg1 {[%emt 0:00:30]} Nxg4 {[%emt 0:00:30]} 25. Bxf8 {[%emt 0:00:30]} Rxf8 {[%emt 0:00:30]} 26. a4 {[%emt 0:12:31]} Bc4 {[%emt 0:02:30]} 27. h3 {[%emt 0:02:18]} Nf2 {[%emt 0:01:30]} 28. Re3 {[%emt 0:00:15]} Nd1 {[%emt 0:05:02]} 29. Rg3 {[%emt 0:00:33]} Rf1+ {[%emt 0:02:01]} 30. Kh2 {[%emt 0:00:01]} g5 {[%emt 0:01:38]} 31. Bxd1 {[%emt 0:00:54]} Rxd1 {[%emt 0:00:30]} 32. h4 {[%emt 0:00:30]} Kh7 {[%emt 0:01:31]} 33. Rf3 {[%emt 0:02:27]} Rf1 {[%emt 0:02:44]} 34. Nf6+ {[%emt 0:01:03]} Kh8 {[%emt 0:01:16]} 35. Rxf1 {[%emt 0:00:30]} Bxf1 {[%emt 0:00:30]} 36. hxg5 {[%emt 0:01:04]} hxg5 {[%emt 0:00:05]} 37. Ne8 {[%emt 0:00:03]} c5 {[%emt 0:03:26]} 38. Nd6 {[%emt 0:01:15]} d4 {[%emt 0:00:30]} 39. cxd4 {[%emt 0:00:30]} cxd4 {[%emt 0:01:45]} 40. Kg1 {[%emt 0:01:59]} Be2 {[%emt 0:01:25]} 41. Kf2 {[%emt 0:00:32]} d3 {[%emt 0:01:13]} 42. a5 {[%emt 0:00:20]} g4 {[%emt 0:02:11]} 43. Nxb7 {[%emt 0:00:50]} g3+ {[%emt 0:00:30]} 44. Ke1 {[%emt 0:00:00]} Bf3 {[%emt 0:00:41]} 45. Nc5 {[%emt 0:01:24]} Bxg2 {[%emt 0:00:27]} 46. Nxd3 {[%emt 0:00:04]} Bd5 {[%emt 0:01:16]} 47. Nc5 {[%emt 0:00:50]} Bc4 {[%emt 0:00:32]} 48. Ne4 {[%emt 0:00:26]} g2 {[%emt 0:00:40]} 49. Kf2 {[%emt 0:00:00]} Bd5 {[%emt 0:00:33]} 50. Nc5 {[%emt 0:00:00]} Kg7 {[%emt 0:00:47]} 51. Nxa6 {[%emt 0:00:13]} Kf7 {[%emt 0:00:42]} 52. Nc7 {[%emt 0:00:32]} Be4 {[%emt 0:01:25]} 53. a6 {[%emt 0:00:14]} Ke7 {[%emt 0:00:56]} 54. a7 {[%emt 0:00:30]} Kd7 {[%emt 0:00:30]} 55. a8=Q {[%emt 0:00:30]} Bxa8 {[%emt 0:00:30]} 56. Nxa8 {[%emt 0:00:30]} g1=Q+ {[%emt 0:00:30]} 57. Kxg1 {[%emt 0:00:30]} Kc6 {[%emt 0:00:00]} 58. Kg2 {[%emt 0:00:00]} Kd5 {[%emt 0:00:32]} 59. Nc7+ {[%emt 0:00:13]} Kxe5 {[%emt 0:00:30]} 60. Nxe6 {[%emt 0:00:30]} 1/2-1/2